fUST/lending_fUST_20240721
["ID","MTS","AMOUNT","RATE_DAILY","PERIOD"]
[332768244,1721509851393,-4244.03,0.00013972,2]
[332768245,1721509851402,-500.0,0.00013972,2]
[332768246,1721509851412,-500.0,0.00013972,2]
[332768247,1721509851424,-571.85,0.00013972,2]
[332768248,1721509851434,-500.0,0.00013972,2]
[332768249,1721509851445,-500.0,0.00013972,2]
[332768250,1721509851456,-2810.71,0.00013972,2]
[332768251,1721509851467,-500.0,0.00013972,2]
[332768252,1721509851478,-500.0,0.00013972,2]
[332768253,1721509851488,-540.77,0.00013972,2]
[332768254,1721509851498,-500.0,0.00013972,2]
[332768255,1721509851507,-500.0,0.00013972,2]
[332768256,1721509851518,-641.78,0.00013972,2]
[332768257,1721509851528,-500.0,0.00013972,2]
[332768258,1721509851539,-500.0,0.00013972,2]
[332768259,1721509851550,-1306.26,0.00013972,2]
[332768260,1721509851560,-513.24561122,0.00013972,2]
[332768261,1721509851572,-500.0,0.00013972,2]
[332768262,1721509851583,-500.0,0.00013972,2]
[332768263,1721509851596,-500.0,0.00013972,2]
[332768264,1721509851606,-500.0,0.00013972,2]
[332768265,1721509851615,-500.0,0.00013972,2]
[332768266,1721509851627,-1810.99,0.00013972,2]
[332768267,1721509851638,-983.71,0.00013972,2]
[332768268,1721509851649,-520.92944104,0.00013972,2]
[332768269,1721509851661,-508.33268368,0.00013972,2]
[332768270,1721509851671,-508.67,0.00013972,2]
[332768271,1721509851682,-500.0,0.00013972,2]
[332768272,1721509851693,-500.0,0.00013972,2]
[332768273,1721509851704,-500.0,0.00013972,2]
[332768274,1721509851716,-500.0,0.00013972,2]
[332768275,1721509851727,-500.0,0.00013972,2]
[332768276,1721509851739,-1102.58,0.00013972,2]
[332768277,1721509851749,-539.10656031,0.00013972,2]
[332768278,1721509851761,-500.0,0.00013972,2]
[332768279,1721509851772,-500.0,0.00013972,2]
[332768280,1721509851782,-500.0,0.00013972,2]
[332768281,1721509851793,-1207.03,0.00013972,2]
[332768282,1721509851804,-1035.9,0.00013972,2]
[332768283,1721509851815,-500.0,0.00013972,2]
[332768284,1721509851828,-500.0,0.00013972,2]
[332768285,1721509851839,-500.0,0.00013972,2]
[332768286,1721509851851,-500.0,0.00013972,2]
[332768287,1721509851863,-2402.51,0.00013972,2]
[332768288,1721509851874,-500.0,0.00013972,2]
[332768289,1721509851884,-500.0,0.00013972,2]
[332768290,1721509851895,-687.59,0.00013972,2]
[332768291,1721509851906,-752.37,0.00013972,2]
[332768292,1721509852099,-500.0,0.00013972,2]
[332768293,1721509852109,-503.08165892,0.00013972,2]
[332768294,1721509852118,-500.0,0.00013972,2]
[332768295,1721509852129,-1256.37,0.00013972,2]
[332768296,1721509852140,-502.76716104,0.00013972,2]
[332768297,1721509852149,-533.97409384,0.00013972,2]
[332768298,1721509852159,-1137.19,0.00013972,2]
[332768299,1721509852171,-1336.62,0.00013972,2]
[332768300,1721509852182,-500.0,0.00013972,2]
[332768301,1721509852193,-500.0,0.00013972,2]
[332768302,1721509852202,-1896.75,0.00013972,2]
[332768303,1721509852212,-500.0,0.00013972,2]
[332768304,1721509852222,-500.0,0.00013972,2]
[332768305,1721509852234,-2521.54,0.00013972,2]
[332768306,1721509852246,-10248.99,0.00013972,2]
[332768307,1721509852256,-1360.19,0.00013972,2]
[332768308,1721509852266,-500.0,0.00013972,2]
[332768309,1721509852275,-12219.86,0.00013972,2]
[332768310,1721509852285,-500.0,0.00013972,2]
[332768311,1721509852296,-500.0,0.00013972,2]
[332768312,1721509852307,-500.0,0.00013972,2]
[332768313,1721509852317,-2906.83,0.00013972,2]
[332768314,1721509852326,-500.0,0.00013972,2]
[332768315,1721509852336,-500.0,0.00013972,2]
[332768316,1721509852346,-500.0,0.00013972,2]
[332768317,1721509852355,-1339.52,0.00013972,2]
[332768318,1721509852366,-500.0,0.00013972,2]
[332768319,1721509852375,-838.95,0.00013972,2]
[332768320,1721509852385,-1411.67,0.00013972,2]
[332768321,1721509852395,-509.59,0.00013972,2]
[332768322,1721509852405,-500.0,0.00013972,2]
[332768323,1721509852415,-500.0,0.00013972,2]
[332768324,1721509852425,-8495.04,0.00013972,2]
[332768325,1721509852435,-500.0,0.00013972,2]
[332768326,1721509852445,-912.53,0.00013972,2]
[332768327,1721509852455,-183.21500843,0.00013972,2]
[332768328,1721509852464,-500.0,0.00013972,2]
[332768329,1721509852474,-568.38256445,0.00013972,2]
[332768330,1721509852486,-608.63406425,0.00013972,2]
[332768331,1721509852495,-1013.9,0.00013972,2]
[332768332,1721509852505,-500.0,0.00013972,2]
[332768333,1721509852515,-500.0,0.00013972,2]
[332768334,1721509852525,-12539.83,0.00013972,2]
[332768335,1721509852534,-500.0,0.00013972,2]
[332768336,1721509852544,-500.0,0.00013972,2]
[332768337,1721509852554,-832.89,0.00013972,2]
[332768338,1721509852564,-500.0,0.00013972,2]
[332768339,1721509852573,-2200.07,0.00013972,2]
[332768340,1721509852583,-500.0,0.00013972,2]
[332768341,1721509852592,-850.96,0.00013972,2]
[332768342,1721509852602,-1061.7,0.00013972,2]
[332768343,1721509852612,-500.0,0.00013972,2]
[332768344,1721509852621,-1162.5,0.00013972,2]
[332768345,1721509852631,-1471.9,0.00013972,2]
[332768346,1721509852640,-500.0,0.00013972,2]
[332768347,1721509852649,-2198.38,0.00013972,2]
[332768348,1721509852659,-500.0,0.00013972,2]
[332768349,1721509852669,-500.0,0.00013972,2]
[332768350,1721509852679,-2125.73,0.00013972,2]
[332768351,1721509852689,-500.0,0.00013972,2]
[332768352,1721509852699,-500.0,0.00013972,2]
[332768353,1721509852708,-800.21,0.00013972,2]
[332768354,1721509852718,-500.0,0.00013972,2]
[332768355,1721509852729,-500.0,0.00013972,2]
[332768356,1721509852738,-1971.06,0.00013972,2]
[332768357,1721509852748,-2143.04,0.00013972,2]
[332768358,1721509852757,-500.0,0.00013972,2]
[332768359,1721509852767,-1975.25,0.00013972,2]
[332768360,1721509852777,-500.0,0.00013972,2]
[332768361,1721509852787,-500.0,0.00013972,2]
[332768362,1721509852797,-518.24520718,0.00013972,2]
[332768363,1721509852807,-500.0,0.00013972,2]
[332768364,1721509852818,-500.0,0.00013972,2]
[332768365,1721509852828,-1227.14,0.00013972,2]
[332768366,1721509852838,-500.0,0.00013972,2]
[332768367,1721509852847,-2777.37,0.00013972,2]
[332768368,1721509852857,-5184.96,0.00013972,2]
[332768369,1721509852867,-500.0,0.00013972,2]
[332768370,1721509852877,-500.0,0.00013972,2]
[332768371,1721509852887,-2128.81,0.00013972,2]
[332768372,1721509852896,-7619.7,0.00013972,2]
[332768373,1721509852906,-154.9094073,0.00014,2]
[332768374,1721509852916,-150.112233,0.00014,2]
[332768375,1721509852926,-2569.78506989,0.00014036,2]
[332768376,1721509852936,-1408.0,0.00014205,2]
[332768377,1721509852946,-500.0,0.00014246,2]
[332768378,1721509852956,-500.0,0.00014246,2]
[332768379,1721509852966,-500.0,0.00014246,2]
[332768380,1721509852977,-500.0,0.00014246,2]
[332768381,1721509852986,-500.0,0.00014246,2]
[332768382,1721509852995,-745.12,0.00014246,2]
[332768383,1721509853005,-500.0,0.00014246,2]
[332768384,1721509853015,-500.0,0.00014246,2]
[332768385,1721509853025,-518.35,0.00014246,2]
[332768386,1721509853035,-551.6,0.00014246,2]
[332768387,1721509853045,-500.0,0.00014246,2]
[332768388,1721509853055,-500.0,0.00014246,2]
[332768389,1721509853064,-891.72,0.00014246,2]
[332768390,1721509853074,-500.0,0.00014246,2]
[332768391,1721509853084,-540.92680872,0.00014246,2]
[332768392,1721509853098,-500.0,0.00014246,2]
[332768393,1721509853107,-500.0,0.00014246,2]
[332768394,1721509853116,-500.0,0.00014246,2]
[332768395,1721509853126,-500.0,0.00014246,2]
[332768396,1721509853138,-500.0,0.00014246,2]
[332768397,1721509853148,-500.0,0.00014246,2]
[332768398,1721509853158,-642.89,0.00014246,2]
[332768399,1721509853168,-1155.34,0.00014246,2]
[332768400,1721509853177,-500.0,0.00014246,2]
[332768401,1721509853187,-500.0,0.00014246,2]
[332768402,1721509853198,-576.43,0.00014246,2]
[332768403,1721509853209,-500.0,0.00014246,2]
[332768404,1721509853218,-1511.54,0.00014246,2]
[332768405,1721509853230,-800.31,0.00014246,2]
[332768406,1721509853240,-518.08,0.00014246,2]
[332768407,1721509853250,-825.39,0.00014246,2]
[332768408,1721509853260,-500.0,0.00014246,2]
[332768409,1721509853271,-337.62634337,0.00014246,2]
[332768410,1721509853281,-415.26668233,0.00014246,2]
[332768411,1721509853291,-500.0,0.00014246,2]
[332768412,1721509853301,-500.0,0.00014246,2]
[332768413,1721509853311,-307.19556289,0.00014246,2]
[332768414,1721509853321,-715.07,0.00014246,2]
[332768415,1721509853331,-500.0,0.00014246,2]
[332768416,1721509853342,-500.0,0.00014246,2]
[332768417,1721509853351,-500.0,0.00014246,2]
[332768418,1721509853361,-274.77327132,0.00014246,2]
[332768419,1721509853371,-500.0,0.00014246,2]
[332768420,1721509853381,-559.68,0.00014246,2]
[332768421,1721509853390,-500.0,0.00014246,2]
[332768422,1721509853400,-500.0,0.00014246,2]
[332768423,1721509853410,-500.0,0.00014246,2]
[332768424,1721509853420,-500.0,0.00014246,2]
[332768425,1721509853429,-502.03335675,0.00014246,2]
[332768426,1721509853439,-512.08117975,0.00014246,2]
[332768427,1721509853449,-820.39,0.00014246,2]
[332768428,1721509853458,-534.99,0.00014246,2]
[332768429,1721509853468,-500.0,0.00014246,2]
[332768430,1721509853477,-500.0,0.00014246,2]
[332768431,1721509853490,-506.27059481,0.00014246,2]
[332768432,1721509853499,-500.0,0.00014246,2]
[332768433,1721509853509,-857.85,0.00014246,2]
[332768434,1721509853518,-2907.16,0.00014246,2]
[332768435,1721509853528,-500.0,0.00014246,2]
[332768436,1721509853538,-500.0,0.00014246,2]
[332768437,1721509853548,-500.0,0.00014246,2]
[332768438,1721509853559,-500.0,0.00014246,2]
[332768439,1721509853569,-500.0,0.00014246,2]
[332768440,1721509853580,-500.0,0.00014246,2]
[332768441,1721509853590,-775.55,0.00014246,2]
[332768442,1721509853600,-500.0,0.00014246,2]
[332768443,1721509853610,-500.0,0.00014246,2]
[332768444,1721509853620,-717.1,0.00014246,2]
[332768445,1721509853631,-870.27,0.00014246,2]
[332768446,1721509853641,-500.0,0.00014246,2]
[332768447,1721509853651,-500.0,0.00014246,2]
[332768448,1721509853662,-960.36,0.00014246,2]
[332768449,1721509853672,-500.0,0.00014246,2]
[332768450,1721509853684,-1511.06,0.00014246,2]
[332768451,1721509853695,-721.48,0.00014246,2]
[332768452,1721509853705,-555.93805008,0.00014246,2]
[332768453,1721509853715,-500.0,0.00014246,2]
[332768454,1721509853728,-747.28,0.00014246,2]
[332768455,1721509853740,-500.0,0.00014246,2]
[332768456,1721509853749,-500.0,0.00014246,2]
[332768457,1721509853759,-1034.63,0.00014246,2]
[332768458,1721509853770,-500.0,0.00014246,2]
[332768459,1721509853782,-503.50562691,0.00014246,2]
[332768460,1721509853792,-500.0,0.00014246,2]
[332768461,1721509853801,-899.88,0.00014246,2]
[332768462,1721509853811,-616.77,0.00014246,2]
[332768463,1721509853821,-155.98610733,0.00014246,2]
[332768464,1721509853830,-2709.53,0.00014246,2]
[332768465,1721509853839,-500.0,0.00014246,2]
[332768466,1721509853849,-500.0,0.00014246,2]
[332768467,1721509853858,-500.0,0.00014246,2]
[332768468,1721509853868,-509.41848931,0.00014246,2]
[332768469,1721509853878,-500.0,0.00014246,2]
[332768470,1721509853888,-500.0,0.00014246,2]
[332768471,1721509853898,-360.07193622,0.00014246,2]
[332768472,1721509853907,-571.5,0.00014246,2]
[332768473,1721509853918,-500.0,0.00014246,2]
[332768474,1721509853927,-721.72,0.00014246,2]
[332768475,1721509853938,-662.93,0.00014246,2]
[332768476,1721509853947,-500.0,0.00014246,2]
[332768477,1721509853957,-538.55,0.00014246,2]
[332768478,1721509853967,-1071.69,0.00014246,2]
[332768479,1721509853976,-1906.7,0.00014246,2]
[332768480,1721509853988,-3805.56,0.00014246,2]
[332768481,1721509853998,-500.0,0.00014246,2]
[332768482,1721509854007,-500.0,0.00014246,2]
[332768483,1721509854017,-500.0,0.00014246,2]
[332768484,1721509854026,-601.38,0.00014246,2]
[332768485,1721509854037,-500.0,0.00014246,2]
[332768486,1721509854050,-1352.76,0.00014246,2]
[332768487,1721509854060,-500.0,0.00014246,2]
[332768488,1721509854070,-500.0,0.00014246,2]
[332768489,1721509854080,-500.0,0.00014246,2]
[332768490,1721509854095,-500.0,0.00014246,2]
[332768491,1721509854104,-500.0,0.00014246,2]
[332768492,1721509854116,-500.0,0.00014246,2]
[332768493,1721509854128,-500.0,0.00014246,2]
[332768494,1721509854138,-500.0,0.00014246,2]
[332768495,1721509854148,-511.58,0.00014246,2]
[332768496,1721509854159,-500.0,0.00014246,2]
[332768497,1721509854170,-479.02754092,0.00014246,2]
[332768498,1721509854179,-500.0,0.00014246,2]
[332768499,1721509854189,-1111.11,0.00014246,2]
[332768500,1721509854198,-500.0,0.00014246,2]
[332768501,1721509854207,-524.53,0.00014246,2]
[332768502,1721509854217,-500.0,0.00014246,2]
[332768503,1721509854227,-500.0,0.00014246,2]
[332768504,1721509854237,-561.12,0.00014246,2]
[332768505,1721509854247,-500.0,0.00014246,2]
[332768506,1721509854256,-500.0,0.00014246,2]
[332768507,1721509854266,-500.0,0.00014246,2]
[332768508,1721509854275,-500.0,0.00014246,2]
[332768509,1721509854284,-500.0,0.00014246,2]
[332768510,1721509854294,-471.64085717,0.00014246,2]
[332768511,1721509854303,-500.0,0.00014246,2]
[332768512,1721509854313,-806.78,0.00014246,2]
[332768513,1721509854323,-548.18,0.00014246,2]
[332768514,1721509854333,-634.23,0.00014246,2]
[332768515,1721509854343,-500.0,0.00014246,2]
[332768516,1721509854352,-554.43944664,0.00014246,2]
[332768517,1721509854361,-500.0,0.00014246,2]
[332768518,1721509854370,-1714.36,0.00014246,2]
[332768519,1721509854379,-500.0,0.00014246,2]
[332768520,1721509854390,-500.0,0.00014246,2]
[332768521,1721509854400,-170.72705745,0.00014246,2]
[332768522,1721509854409,-779.6,0.00014246,2]
[332768523,1721509854419,-500.0,0.00014246,2]
[332768524,1721509854428,-500.0,0.00014246,2]
[332768525,1721509854437,-500.0,0.00014246,2]
[332768526,1721509854447,-1706.73,0.00014246,2]
[332768527,1721509854456,-500.0,0.00014246,2]
[332768528,1721509854514,-2452.36,0.00014246,2]
[332768529,1721509854524,-500.0,0.00014246,2]
[332768530,1721509854534,-500.0,0.00014246,2]
[332768531,1721509854546,-563.32,0.00014246,2]
[332768532,1721509854558,-576.76,0.00014246,2]
[332768533,1721509854568,-1533.71,0.00014246,2]
[332768534,1721509854578,-1553.15,0.00014246,2]
[332768535,1721509854589,-574.43,0.00014246,2]
[332768536,1721509854598,-500.0,0.00014246,2]
[332768537,1721509854608,-737.02,0.00014246,2]
[332768538,1721509854617,-500.0,0.00014246,2]
[332768539,1721509854627,-1803.4,0.00014246,2]
[332768540,1721509854637,-500.0,0.00014246,2]
[332768541,1721509854649,-500.0,0.00014246,2]
[332768542,1721509854658,-508.80795726,0.00014246,2]
[332768543,1721509854669,-173.75511392,0.00014246,2]
[332768544,1721509854679,-500.0,0.00014246,2]
[332768545,1721509854690,-500.0,0.00014246,2]
[332768546,1721509854699,-150.0,0.00014246,2]
[332768547,1721509854709,-636.52390275,0.00014246,2]
[332768548,1721509854718,-500.0,0.00014246,2]
[332768549,1721509854729,-500.0,0.00014246,2]
[332768550,1721509854739,-500.0,0.00014246,2]
[332768551,1721509854748,-516.79,0.00014246,2]
[332768552,1721509854759,-1165.91,0.00014246,2]
[332768553,1721509854768,-500.0,0.00014246,2]
[332768554,1721509854779,-500.0,0.00014246,2]
[332768555,1721509854790,-500.0,0.00014246,2]
[332768556,1721509854800,-1264.95,0.00014246,2]
[332768557,1721509854810,-500.0,0.00014246,2]
[332768558,1721509854819,-381.21198987,0.00014246,2]
[332768559,1721509854828,-624.72,0.00014246,2]
[332768560,1721509854837,-500.0,0.00014246,2]
[332768561,1721509854847,-500.0,0.00014246,2]
[332768562,1721509854857,-500.0,0.00014246,2]
[332768563,1721509854867,-500.0,0.00014246,2]
[332768564,1721509854878,-500.0,0.00014246,2]
[332768565,1721509854889,-500.0,0.00014246,2]
[332768566,1721509854898,-865.37,0.00014246,2]
[332768567,1721509854908,-500.0,0.00014246,2]
[332768568,1721509854918,-608.57,0.00014246,2]
[332768569,1721509854927,-500.0,0.00014246,2]
[332768570,1721509854937,-500.0,0.00014246,2]
[332768571,1721509854946,-500.0,0.00014246,2]
[332768572,1721509854957,-500.0,0.00014246,2]
[332768573,1721509854967,-500.0,0.00014246,2]
[332768574,1721509854977,-1839.42,0.00014246,2]
[332768575,1721509854988,-500.0,0.00014246,2]
[332768576,1721509854997,-677.98,0.00014246,2]
[332768577,1721509855006,-500.0,0.00014246,2]
[332768578,1721509855015,-1768.99,0.00014246,2]
[332768579,1721509855025,-1188.57,0.00014246,2]
[332768580,1721509855034,-934.33,0.00014246,2]
[332768581,1721509855044,-255.62,0.00014246,2]
[332768582,1721509855053,-500.0,0.00014246,2]
[332768583,1721509855063,-500.0,0.00014246,2]
[332768584,1721509855073,-500.0,0.00014246,2]
[332768585,1721509855083,-500.0,0.00014246,2]
[332768586,1721509855096,-878.88,0.00014246,2]
[332768587,1721509855105,-1540.72,0.00014246,2]
[332768588,1721509855114,-500.0,0.00014246,2]
[332768589,1721509855124,-500.0,0.00014246,2]
[332768590,1721509855134,-3248.56,0.00014246,2]
[332768591,1721509855143,-352.51834169,0.00014246,2]
[332768592,1721509855153,-500.0,0.00014246,2]
[332768593,1721509855162,-652.86,0.00014246,2]
[332768594,1721509855174,-500.0,0.00014246,2]
[332768595,1721509855184,-256.28354357,0.00014246,2]
[332768596,1721509855193,-500.0,0.00014246,2]
[332768597,1721509855203,-500.0,0.00014246,2]
[332768598,1721509855215,-500.0,0.00014246,2]
[332768599,1721509855224,-500.0,0.00014246,2]
[332768600,1721509855235,-500.0,0.00014246,2]
[332768601,1721509855245,-500.0,0.00014246,2]
[332768602,1721509855255,-584.89,0.00014246,2]
[332768603,1721509855265,-151.0,0.00014246,2]
[332768604,1721509855277,-500.0,0.00014246,2]
[332768605,1721509855287,-552.96,0.00014246,2]
[332768606,1721509855296,-500.0,0.00014246,2]
[332768607,1721509855306,-1988.14,0.00014246,2]
[332768608,1721509855316,-500.0,0.00014246,2]
[332768609,1721509855325,-1939.37,0.00014246,2]
[332768610,1721509855335,-809.27,0.00014246,2]
[332768611,1721509855345,-603.1,0.00014246,2]
[332768612,1721509855354,-500.0,0.00014246,2]
[332768613,1721509855365,-1333.39,0.00014246,2]
[332768614,1721509855375,-541.24,0.00014246,2]
[332768615,1721509855385,-500.0,0.00014246,2]
[332768616,1721509855395,-3997.67,0.00014246,2]
[332768617,1721509855405,-500.0,0.00014246,2]
[332768618,1721509855415,-500.0,0.00014246,2]
[332768619,1721509855425,-500.0,0.00014246,2]
[332768620,1721509855434,-1778.54,0.00014246,2]
[332768621,1721509855443,-632.86,0.00014246,2]
[332768622,1721509855453,-500.0,0.00014246,2]
[332768623,1721509855464,-2328.09,0.00014246,2]
[332768624,1721509855474,-510.58623771,0.00014246,2]
[332768625,1721509855484,-500.0,0.00014246,2]
[332768626,1721509855494,-1040.05,0.00014246,2]
[332768627,1721509855504,-1223.7,0.00014246,2]
[332768628,1721509855515,-500.0,0.00014246,2]
[332768629,1721509855524,-500.0,0.00014246,2]
[332768630,1721509855534,-500.0,0.00014246,2]
[332768631,1721509855543,-3052.09,0.00014246,2]
[332768632,1721509855552,-500.0,0.00014246,2]
[332768633,1721509855562,-500.0,0.00014246,2]
[332768634,1721509855571,-2118.41,0.00014246,2]
[332768635,1721509855580,-500.0,0.00014246,2]
[332768636,1721509855589,-3033.57,0.00014246,2]
[332768637,1721509855598,-500.0,0.00014246,2]
[332768638,1721509855608,-640.29,0.00014246,2]
[332768639,1721509855616,-522.98,0.00014246,2]
[332768640,1721509855626,-500.0,0.00014246,2]
[332768641,1721509855635,-1374.85,0.00014246,2]
[332768642,1721509855644,-500.0,0.00014246,2]
[332768643,1721509855653,-551.83,0.00014246,2]
[332768644,1721509855663,-500.0,0.00014246,2]
[332768645,1721509855672,-500.0,0.00014246,2]
[332768646,1721509855681,-657.62,0.00014246,2]
[332768647,1721509855691,-500.0,0.00014246,2]
[332768648,1721509855702,-500.0,0.00014246,2]
[332768649,1721509855711,-872.61,0.00014246,2]
[332768650,1721509855721,-1648.23,0.00014246,2]
[332768651,1721509855730,-500.0,0.00014246,2]
[332768652,1721509855739,-500.0,0.00014246,2]
[332768653,1721509855749,-500.0,0.00014246,2]
[332768654,1721509855758,-510.42578769,0.00014246,2]
[332768655,1721509855767,-614.15,0.00014246,2]
[332768656,1721509855776,-548.79,0.00014246,2]
[332768657,1721509855786,-511.02301535,0.00014246,2]
[332768658,1721509855795,-1196.4,0.00014246,2]
[332768659,1721509855804,-540.44,0.00014246,2]
[332768660,1721509855814,-500.0,0.00014246,2]
[332768661,1721509855823,-500.0,0.00014246,2]
[332768662,1721509855832,-353.74643827,0.00014246,2]
[332768663,1721509855841,-500.0,0.00014246,2]
[332768664,1721509855850,-500.0,0.00014246,2]
[332768665,1721509855860,-500.0,0.00014246,2]
[332768666,1721509855869,-626.91,0.00014246,2]
[332768667,1721509855878,-500.0,0.00014246,2]
[332768668,1721509855887,-521.4783236,0.00014246,2]
[332768669,1721509855896,-500.0,0.00014246,2]
[332768670,1721509855905,-587.18,0.00014246,2]
[332768671,1721509855915,-500.0,0.00014246,2]
[332768672,1721509855924,-500.0,0.00014246,2]
[332768673,1721509855933,-500.0,0.00014246,2]
[332768674,1721509855942,-500.0,0.00014246,2]
[332768675,1721509855952,-3527.45,0.00014246,2]
[332768676,1721509855961,-500.0,0.00014246,2]
[332768677,1721509855971,-500.0,0.00014246,2]
[332768678,1721509855980,-1023.7,0.00014246,2]
[332768679,1721509855989,-16419.34,0.00014246,2]
[332768680,1721509855999,-500.0,0.00014246,2]
[332768681,1721509856008,-1871.24,0.00014246,2]
[332768682,1721509856017,-2012.19,0.00014246,2]
[332768683,1721509856026,-4825.35,0.00014246,2]
[332768684,1721509856035,-500.0,0.00014246,2]
[332768685,1721509856045,-810.53,0.00014246,2]
[332768686,1721509856054,-1959.59,0.00014246,2]
[332768687,1721509856063,-500.0,0.00014246,2]
[332768688,1721509856072,-603.38,0.00014246,2]
[332768689,1721509856081,-2679.42,0.00014246,2]
[332768690,1721509856090,-8367.53,0.00014246,2]
[332768691,1721509856101,-616.05,0.00014246,2]
[332768692,1721509856112,-717.76,0.00014246,2]
[332768693,1721509856120,-6662.52,0.00014246,2]
[332768694,1721509856130,-4600.07,0.00014246,2]
[332768695,1721509856140,-500.0,0.00014246,2]
[332768696,1721509856149,-500.0,0.00014246,2]
[332768697,1721509856159,-383.27512815,0.00014246,2]
[332768698,1721509856169,-500.0,0.00014246,2]
[332768699,1721509856178,-500.0,0.00014246,2]
[332768700,1721509856188,-2579.67,0.00014246,2]
[332768701,1721509856197,-500.0,0.00014246,2]
[332768702,1721509856207,-500.0,0.00014246,2]
[332768703,1721509856216,-2904.58,0.00014246,2]
[332768704,1721509856226,-500.0,0.00014246,2]
[332768705,1721509856237,-4244.03,0.00014246,2]
[332768706,1721509856248,-500.0,0.00014246,2]
[332768707,1721509856258,-571.85,0.00014246,2]
[332768708,1721509856268,-501.72983271,0.00014246,2]
[332768709,1721509856280,-500.0,0.00014246,2]
[332768710,1721509856291,-2810.71,0.00014246,2]
[332768711,1721509856302,-500.0,0.00014246,2]
[332768712,1721509856312,-500.0,0.00014246,2]
[332768713,1721509856321,-540.77,0.00014246,2]
[332768714,1721509856332,-500.0,0.00014246,2]
[332768715,1721509856342,-500.0,0.00014246,2]
[332768716,1721509856351,-641.78,0.00014246,2]
[332768717,1721509856360,-500.0,0.00014246,2]
[332768718,1721509856370,-500.0,0.00014246,2]
[332768719,1721509856381,-1306.26,0.00014246,2]
[332768720,1721509856391,-502.63355936,0.00014246,2]
[332768721,1721509856401,-500.0,0.00014246,2]
[332768722,1721509856411,-453.62559309,0.00014246,2]
[332768723,1721509856421,-1810.99,0.00014246,2]
[332768724,1721509856432,-983.71,0.00014246,2]
[332768725,1721509856442,-508.67,0.00014246,2]
[332768726,1721509856452,-500.0,0.00014246,2]
[332768727,1721509856462,-500.0,0.00014246,2]
[332768728,1721509856470,-500.0,0.00014246,2]
[332768729,1721509856479,-500.0,0.00014246,2]
[332768730,1721509856488,-500.0,0.00014246,2]
[332768731,1721509856499,-1102.58,0.00014246,2]
[332768732,1721509856508,-500.0,0.00014246,2]
[332768733,1721509856518,-500.0,0.00014246,2]
[332768734,1721509856527,-500.0,0.00014246,2]
[332768735,1721509856537,-1207.03,0.00014246,2]
[332768736,1721509856546,-1035.9,0.00014246,2]
[332768737,1721509856555,-500.0,0.00014246,2]
[332768738,1721509856565,-500.0,0.00014246,2]
[332768739,1721509856574,-500.0,0.00014246,2]
[332768740,1721509856583,-500.0,0.00014246,2]
[332768741,1721509856593,-2402.51,0.00014246,2]
[332768742,1721509856602,-500.0,0.00014246,2]
[332768743,1721509856611,-500.0,0.00014246,2]